bitfinex-derivatives/quotes_BTCF0:USTF0_20250822
["timestamp","ask_amount","ask_price","bid_price","bid_amount"]
[1755888690058,0.3648,116840.0,116830.0,0.88714425]
[1755888691062,0.004,116840.0,116830.0,1.24794425]
[1755888694160,0.004,116840.0,116830.0,0.8464001]
[1755888694454,0.40554415,116840.0,116830.0,0.8464001]
[1755888694660,0.76634415,116840.0,116830.0,0.4856001]
[1755888695055,0.76634415,116840.0,116830.0,0.2356001]
[1755888695861,0.76634415,116840.0,116830.0,0.15]
[1755888696063,1.68641675,116840.0,116830.0,0.15]
[1755888696560,1.68641675,116840.0,116830.0,0.08251]
[1755888697063,1.60082415,116840.0,116830.0,0.08251]
[1755888697464,1.60082415,116840.0,116830.0,0.06686]
[1755888698959,2.0879609,116840.0,116830.0,0.02283]
[1755888699150,1.68641675,116840.0,116830.0,0.02283]
[1755888699357,2.10729601,116840.0,116830.0,0.02283]
[1755888699657,1.30420771,116840.0,116830.0,0.05763]
[1755888699859,1.70575186,116840.0,116830.0,0.05763]
[1755888700171,1.60082415,116840.0,116830.0,0.18228]
[1755888700465,0.76634415,116840.0,116830.0,0.23585]
[1755888700667,1.1978,116840.0,116830.0,0.23585]
[1755888700863,1.66649923,116840.0,116830.0,0.23585]
[1755888701073,1.26495508,116840.0,116830.0,0.23585]
[1755888701364,1.66649923,116840.0,116830.0,0.23585]
[1755888701565,1.26495508,116840.0,116830.0,0.23585]
[1755888701761,1.66649923,116840.0,116830.0,0.23585]
[1755888704178,1.59934415,116840.0,116830.0,0.23585]
[1755888704364,1.1978,116840.0,116830.0,0.23585]
[1755888704564,0.384151,116840.0,116830.0,0.23585]
[1755888704767,0.78569515,116840.0,116830.0,0.23585]
[1755888705071,0.76634415,116840.0,116830.0,0.23585]
[1755888705261,0.78569823,116840.0,116830.0,0.23585]
[1755888705664,0.38415408,116840.0,116830.0,0.23585]
[1755888706073,0.78569823,116840.0,116830.0,0.23585]
[1755888706275,0.78570295,116840.0,116830.0,0.23585]
[1755888707476,0.3841588,116840.0,116830.0,0.23585]
[1755888707778,0.004,116840.0,116830.0,1.24819415]
[1755888708973,0.004,116840.0,116830.0,0.84665]
[1755888709169,0.004,116840.0,116830.0,1.24819415]
[1755888710170,0.004,116840.0,116830.0,0.84665]
[1755888710367,0.004,116840.0,116830.0,1.24819415]
[1755888710567,0.3608,116880.0,116870.0,0.1455007]
[1755888710770,0.78084251,116880.0,116870.0,0.2375007]
[1755888711077,2.36640581,116880.0,116870.0,0.15193]
[1755888711273,2.34790745,116880.0,116870.0,0.15193]
[1755888711475,2.34790745,116880.0,116870.0,0.09836]
[1755888712072,2.35390745,116880.0,116870.0,0.08444]
[1755888712474,2.35390745,116880.0,116870.0,0.06854]
[1755888712782,2.35990745,116880.0,116870.0,0.06854]
[1755888713081,2.35990745,116880.0,116870.0,0.03374]
[1755888713475,2.35990745,116880.0,116870.0,0.06854]
[1755888714179,2.27434415,116880.0,116870.0,0.06854]
[1755888714681,2.27434415,116880.0,116870.0,0.1541107]
[1755888717681,2.27434415,116880.0,116870.0,0.2344907]
[1755888718279,3.10726415,116880.0,116870.0,0.2344907]
[1755888718478,2.70572,116880.0,116870.0,0.2344907]
[1755888718678,3.10666415,116880.0,116870.0,0.2344907]
[1755888718883,1.60666415,116880.0,116870.0,0.2344907]
[1755888719479,1.20512,116880.0,116870.0,0.2344907]
[1755888719984,1.60666415,116880.0,116870.0,0.2344907]
[1755888720183,1.60658415,116880.0,116870.0,0.2344907]
[1755888720584,1.60590415,116880.0,116870.0,0.2344907]
[1755888720779,1.69146745,116880.0,116870.0,0.06346]
[1755888720981,1.69146745,116880.0,116870.0,0.1193106]
[1755888721377,1.69146745,116880.0,116870.0,0.02451]
[1755888721577,2.0930116,116880.0,116870.0,0.02451]
[1755888721778,2.0930116,116880.0,116870.0,0.1100806]
[1755888721779,1.2899233,116880.0,116870.0,0.1100806]
[1755888721977,1.20436,116880.0,116870.0,0.2338406]
[1755888722177,1.60590415,116880.0,116870.0,0.2338406]
[1755888724488,1.60590415,116880.0,116870.0,0.2194806]
[1755888724791,1.60590415,116880.0,116870.0,0.2338406]
[1755888726687,2.0930116,116880.0,116870.0,0.02451]
[1755888727079,1.2899233,116880.0,116870.0,0.02451]
[1755888727279,2.0930116,116880.0,116870.0,0.02451]
[1755888727883,2.0930116,116880.0,116860.0,0.119055]
[1755888728085,0.84791485,116870.0,116860.0,0.0247]
[1755888728388,1.5,116860.0,116850.0,0.1102835]
[1755888728584,3.17964215,116860.0,116840.0,0.14040289]
[1755888728787,0.40154415,116850.0,116840.0,0.16240891]
[1755888728984,0.76234415,116850.0,116840.0,0.16240891]
[1755888729182,0.3608,116850.0,116840.0,0.24278891]
[1755888729689,3.09426415,116860.0,116850.0,0.2340453]
[1755888729889,1.8608,116860.0,116850.0,0.2340453]
[1755888730090,3.09442415,116860.0,116850.0,0.2340453]
[1755888730288,2.26234415,116860.0,116850.0,0.25329459]
[1755888730488,2.69252,116860.0,116850.0,0.25329459]
[1755888731187,2.69252,116860.0,116850.0,0.25429459]
[1755888731188,2.69652,116860.0,116850.0,0.25429459]
[1755888731390,3.09806415,116860.0,116850.0,0.25429459]
[1755888731994,3.10206415,116860.0,116850.0,0.25429459]
[1755888732185,2.70052,116860.0,116850.0,0.25429459]
[1755888732384,1.8688,116860.0,116850.0,0.25429459]
[1755888732784,2.27034415,116860.0,116850.0,0.25429459]
[1755888733488,2.35592215,116860.0,116850.0,0.25429459]
[1755888733689,2.27034415,116860.0,116850.0,0.25429459]
[1755888734184,1.90954415,116860.0,116850.0,0.25429459]
[1755888734391,2.73974415,116860.0,116850.0,0.25429459]
[1755888736491,2.73974415,116860.0,116850.0,0.18927459]
[1755888736492,2.82532215,116860.0,116850.0,0.18927459]
[1755888736887,3.18612215,116860.0,116850.0,0.13053459]
[1755888738292,3.18612215,116860.0,116850.0,0.17660857]
[1755888738693,3.18612215,116860.0,116850.0,0.21008857]
[1755888739491,3.18612215,116860.0,116850.0,0.17660857]
[1755888739995,3.18612215,116860.0,116850.0,0.15190857]
[1755888740698,3.20368625,116860.0,116850.0,0.02024929]
[1755888741596,3.21230599,116860.0,116850.0,0.02024929]
[1755888742200,3.19474189,116860.0,116850.0,0.02024929]
[1755888742402,3.19474189,116860.0,116850.0,0.10583459]
[1755888743197,3.19474189,116860.0,116850.0,0.13053459]
[1755888743498,3.19474189,116860.0,116850.0,0.04494929]
[1755888743892,3.19474189,116860.0,116850.0,0.02024929]
[1755888744287,3.18612215,116860.0,116850.0,0.02024929]
[1755888744894,3.18612215,116860.0,116850.0,0.04494929]
[1755888746398,2.784578,116860.0,116850.0,0.04494929]
[1755888746600,3.18612215,116860.0,116850.0,0.04494929]
[1755888747602,2.784578,116860.0,116850.0,0.04494929]
[1755888747797,3.18612215,116860.0,116850.0,0.13053429]
[1755888748400,3.18612215,116860.0,116850.0,0.04494929]
[1755888751108,3.20348791,116860.0,116850.0,0.04494929]
[1755888753404,3.45348791,116860.0,116850.0,0.04494929]
[1755888754615,3.45348791,116860.0,116850.0,0.07766929]
[1755888757112,3.45348791,116860.0,116850.0,0.12374327]
[1755888757314,3.05194376,116860.0,116850.0,0.12374327]
[1755888757515,3.45348791,116860.0,116850.0,0.12374327]
[1755888759409,3.43612215,116860.0,116850.0,0.15453824]
[1755888760314,3.034578,116860.0,116850.0,0.15453824]
[1755888760518,3.45341263,116860.0,116850.0,0.12374327]
[1755888760713,3.44649263,116860.0,116850.0,0.13274327]
[1755888761504,3.44649263,116860.0,116850.0,0.21832827]
[1755888761709,3.04494848,116860.0,116850.0,0.26874827]
[1755888762021,3.44649263,116860.0,116850.0,0.29925827]
[1755888762514,2.52034415,116860.0,116850.0,0.33005586]
[1755888762716,3.34362415,116860.0,116850.0,0.33005586]
[1755888763012,3.09362415,116860.0,116850.0,0.33005586]
[1755888763218,3.09362415,116860.0,116850.0,0.29925827]
[1755888764618,3.11088259,116860.0,116850.0,0.29925827]
[1755888766819,3.19646029,116860.0,116850.0,0.29925827]
[1755888767016,3.19646029,116860.0,116850.0,0.24883827]
[1755888767716,3.19646029,116860.0,116850.0,0.23470827]
[1755888768820,2.70933844,116860.0,116850.0,0.28512827]
[1755888769020,3.11088259,116860.0,116850.0,0.29925827]
[1755888769222,3.09362415,116860.0,116850.0,0.29925827]
[1755888769621,3.09362415,116860.0,116850.0,0.24883827]
[1755888769820,2.69204,116860.0,116850.0,0.29925827]
[1755888770020,3.09358415,116860.0,116850.0,0.29925827]
[1755888770726,3.11084769,116860.0,116850.0,0.29925827]
[1755888772324,3.11084769,116860.0,116850.0,0.24883827]
[1755888772624,3.11084769,116860.0,116850.0,0.23470827]
[1755888772625,2.28760769,116860.0,116850.0,0.23470827]
[1755888772927,3.11080769,116860.0,116850.0,0.23470827]
[1755888773119,3.19638539,116860.0,116850.0,0.23470827]
[1755888773622,2.79484124,116860.0,116850.0,0.18316327]
[1755888773820,3.19638539,116860.0,116850.0,0.26874827]
[1755888774024,3.19638539,116860.0,116850.0,0.21832827]
[1755888774321,2.70926354,116860.0,116850.0,0.28287827]
[1755888774622,3.11080769,116860.0,116850.0,0.29925827]
[1755888775919,3.11268769,116860.0,116850.0,0.29925827]
[1755888776114,3.19826529,116860.0,116850.0,0.23470827]
[1755888777427,3.11268769,116860.0,116850.0,0.28539827]
[1755888779126,3.11268769,116860.0,116850.0,0.23470827]
[1755888780326,2.71114354,116860.0,116850.0,0.28539827]
[1755888780528,3.11268769,116860.0,116850.0,0.28539827]
[1755888780926,3.11268769,116860.0,116850.0,0.23470827]
[1755888781929,3.19826529,116860.0,116850.0,0.18560827]
[1755888782527,3.19826529,116860.0,116850.0,0.13376327]
[1755888782528,2.37318529,116860.0,116850.0,0.13376327]
[1755888782725,3.19826529,116860.0,116850.0,0.13376327]
[1755888783029,3.19826529,116860.0,116850.0,0.06632327]
[1755888785130,3.44826529,116860.0,116850.0,0.001]
[1755888785433,3.19826529,116860.0,116850.0,0.001]
[1755888790129,3.19867569,116860.0,116850.0,0.001]
[1755888794136,0.085585,116850.0,116840.0,0.02389]
[1755888794330,2.09054724,116850.0,116840.0,0.02389]
[1755888796133,2.0728733,116850.0,116840.0,0.02389]
[1755888796332,2.09053383,116850.0,116840.0,0.02389]
[1755888796936,1.68898968,116850.0,116840.0,0.02389]
[1755888797135,1.69198968,116850.0,116840.0,0.02389]
[1755888797833,1.69998968,116850.0,116840.0,0.02389]
[1755888798437,2.10153383,116850.0,116840.0,0.02389]
[1755888801043,1.69998968,116850.0,116840.0,0.06691]
[1755888802341,1.69998968,116850.0,116840.0,0.1176]
[1755888803337,1.69998968,116850.0,116840.0,0.06691]
[1755888804238,2.10153383,116850.0,116840.0,0.06691]
[1755888804840,2.0838733,116850.0,116840.0,0.09768854]
[1755888805235,1.280785,116850.0,116840.0,0.14837854]
[1755888805430,1.68232915,116850.0,116840.0,0.14837854]
[1755888805739,1.68232915,116850.0,116840.0,0.09768854]
[1755888808345,2.18800464,116850.0,116840.0,0.09768854]
[1755888811538,1.280785,116850.0,116840.0,0.09768854]
[1755888811842,2.18800464,116850.0,116840.0,0.09768854]
[1755888812339,2.18800464,116850.0,116840.0,0.25884074]
[1755888812545,2.18784464,116850.0,116840.0,0.25884074]
[1755888814437,2.18784464,116850.0,116840.0,0.17324854]
[1755888822350,2.18768464,116850.0,116840.0,0.25884084]
[1755888824347,2.18768464,116850.0,116840.0,0.17324854]
[1755888828447,2.18768464,116850.0,116840.0,0.18854398]
[1755888829849,2.18768464,116850.0,116840.0,0.19858092]
[1755888830049,2.18768464,116850.0,116840.0,0.18854398]
[1755888830257,2.18768464,116850.0,116840.0,0.14288398]
[1755888831459,2.18768464,116850.0,116840.0,0.12929398]
[1755888832861,2.18768464,116850.0,116840.0,0.17495398]
[1755888833062,2.18768464,116850.0,116840.0,0.12929398]
[1755888833957,1.280465,116850.0,116840.0,0.12929398]
[1755888834156,1.27901964,116850.0,116840.0,0.27413638]
[1755888834356,2.10177964,116850.0,116840.0,0.27413638]
[1755888834557,1.64816982,116850.0,116840.0,0.53417292]
[1755888834756,1.64816982,116850.0,116840.0,0.94170844]
[1755888836249,1.19456,116850.0,116840.0,0.94170844]
[1755888836562,0.82540982,116850.0,116840.0,0.94170844]
[1755888836757,1.19448,116850.0,116840.0,0.94170844]
[1755888837062,1.64808982,116850.0,116840.0,0.94170844]
[1755888837262,1.19448,116850.0,116840.0,0.94170844]
[1755888837463,1.64808982,116850.0,116840.0,0.94170844]
[1755888837957,1.19448,116850.0,116840.0,0.94170844]
[1755888838563,0.82540982,116850.0,116840.0,0.94170844]
[1755888839666,0.82540982,116850.0,116840.0,0.94170779]
[1755888842369,1.64780982,116850.0,116840.0,0.94170779]
[1755888842565,0.82540982,116850.0,116840.0,0.48809797]
[1755888842766,1.64776982,116850.0,116840.0,0.94170779]
[1755888843468,1.64776982,116850.0,116840.0,0.93167222]
[1755888844669,1.19416,116850.0,116840.0,0.93167222]
[1755888844877,1.64776982,116850.0,116840.0,0.94170779]
[1755888845178,1.64776982,116850.0,116840.0,0.93167222]
[1755888845364,1.64776982,116850.0,116840.0,0.68167222]
[1755888847772,1.28696982,116850.0,116840.0,1.04247222]
[1755888847976,0.011,116850.0,116840.0,1.3025072]
[1755888848276,0.011,116850.0,116840.0,1.36395323]
[1755888848472,0.011,116850.0,116840.0,1.30250686]
[1755888848676,0.011,116850.0,116840.0,1.30250616]
[1755888849276,2.31440982,116880.0,116870.0,0.05861]
[1755888849476,3.13644982,116880.0,116870.0,0.73047814]
[1755888849671,3.13644982,116880.0,116870.0,0.27686832]
[1755888849871,3.14171982,116880.0,116870.0,0.27686832]
[1755888850072,1.86607,116880.0,116870.0,0.98047814]
[1755888850269,3.14167982,116880.0,116870.0,0.98047814]
[1755888850476,2.69907,116880.0,116870.0,0.98047814]
[1755888850677,1.517,116880.0,116870.0,2.11711022]
[1755888850876,0.01244183,116880.0,116870.0,2.17861411]
[1755888851080,0.01244183,116880.0,116870.0,2.6422558]
[1755888851377,0.01244183,116880.0,116870.0,2.58075191]
[1755888851576,0.01244183,116880.0,116870.0,2.64216782]
[1755888852278,0.01244183,116880.0,116870.0,2.13760659]
[1755888852968,0.01244183,116880.0,116870.0,2.07619068]
[1755888854476,0.01244183,116880.0,116870.0,2.13760659]
[1755888854675,0.01244183,116880.0,116870.0,2.20606555]
[1755888855174,0.02087183,116880.0,116870.0,1.80340714]
[1755888855387,0.02614183,116880.0,116870.0,1.55340714]
[1755888855576,0.02614183,116880.0,116870.0,1.80340714]
[1755888855776,0.02614183,116880.0,116870.0,1.74199123]
[1755888855975,0.02614183,116880.0,116870.0,2.14464964]
[1755888856178,0.02614183,116880.0,116870.0,1.74199123]
[1755888857086,0.02614183,116880.0,116870.0,1.74199076]
[1755888857280,0.42880024,116880.0,116870.0,1.49199076]
[1755888857476,0.42880024,116880.0,116870.0,1.1671009]
[1755888858583,0.78960024,116880.0,116870.0,1.1671009]
[1755888858777,0.42880024,116880.0,116870.0,1.1671009]
[1755888858983,0.42880024,116880.0,116870.0,0.3451409]
[1755888859384,0.02614183,116880.0,116870.0,0.3451409]
[1755888859584,0.42880024,116880.0,116870.0,0.3451409]
[1755888859785,0.78960024,116880.0,116870.0,0.3451409]
[1755888860480,0.42880024,116880.0,116870.0,0.3451409]
[1755888860683,0.78960024,116880.0,116870.0,0.3451409]
[1755888861785,0.38694183,116880.0,116870.0,0.3451409]
[1755888861988,0.78960024,116880.0,116870.0,0.3451409]
[1755888864198,0.42880024,116880.0,116870.0,0.3451409]
[1755888864890,0.42880024,116880.0,116870.0,0.35517331]
[1755888865480,0.78960024,116880.0,116870.0,0.35517331]
[1755888865692,0.87516414,116880.0,116870.0,0.27668194]
[1755888867891,0.87516414,116880.0,116870.0,0.22861194]
[1755888868082,0.87516414,116880.0,116870.0,0.21477194]
[1755888868590,0.87516414,116880.0,116870.0,0.26257194]
[1755888868785,0.87516414,116880.0,116870.0,0.21477194]
[1755888869289,0.87516414,116880.0,116870.0,0.19950009]
[1755888869795,2.34870255,116880.0,116870.0,0.05531969]
[1755888870097,1.94604414,116880.0,116870.0,0.04765389]
[1755888871088,1.94604414,116880.0,116870.0,0.07832358]
[1755888873096,1.94604414,116880.0,116870.0,0.05531969]
[1755888874298,2.34870255,116880.0,116870.0,0.05531969]
[1755888879498,2.34870255,116880.0,116870.0,0.03066969]
[1755888879998,2.34870255,116880.0,116870.0,0.05524969]
[1755888883507,1.54338573,116880.0,116870.0,0.08710969]
[1755888883708,1.94604414,116880.0,116870.0,0.05524969]
[1755888883898,1.94604414,116880.0,116870.0,0.08710969]
[1755888884098,2.34870255,116880.0,116870.0,0.08710969]
[1755888886109,2.34870255,116880.0,116870.0,0.13305123]
[1755888886297,1.54338573,116880.0,116870.0,0.13305123]
[1755888886494,2.34870255,116880.0,116870.0,0.13305123]
[1755888886708,2.34870255,116880.0,116870.0,0.10119123]
[1755888888107,2.34870255,116880.0,116870.0,0.13305123]
[1755888888705,2.34870255,116880.0,116870.0,0.10119123]
[1755888890110,2.34870255,116880.0,116870.0,0.07052154]
[1755888890511,2.34870255,116880.0,116870.0,0.10127923]
[1755888891221,2.34870255,116880.0,116870.0,0.07052154]
[1755888892315,2.45009739,116880.0,116870.0,0.07052154]
[1755888892515,1.54338573,116880.0,116870.0,0.07052154]
[1755888892711,2.45009739,116880.0,116870.0,0.07052154]
[1755888894816,2.20009739,116880.0,116870.0,0.07052154]
[1755888900315,2.20009739,116880.0,116870.0,0.15585154]
[1755888900515,2.20009739,116880.0,116870.0,0.17204154]
[1755888901909,2.20009739,116880.0,116870.0,0.09573154]
[1755888904716,0.47250533,116880.0,116870.0,0.19547234]
[1755888904924,1.37921699,116880.0,116870.0,0.20550615]
[1755888905124,0.84029766,116880.0,116870.0,0.45550615]
[1755888905422,1.65937766,116880.0,116870.0,0.20550615]
[1755888905721,2.11273349,116880.0,116870.0,0.20550615]
[1755888905918,1.28838349,116880.0,116870.0,0.40956461]
[1755888906124,1.37394699,116880.0,116870.0,0.40956461]
[1755888906324,0.87537658,116880.0,116870.0,0.40956461]
[1755888906527,0.87537658,116880.0,116870.0,0.15956461]
[1755888906920,0.87537658,116880.0,116870.0,0.23587461]
[1755888907627,0.86593475,116880.0,116870.0,0.15130381]
[1755888907930,0.86893475,116880.0,116870.0,0.15230381]
[1755888908222,0.86893475,116880.0,116870.0,0.15230368]
[1755888908429,0.4660635,116880.0,116870.0,0.28409214]
[1755888908725,0.86593475,116880.0,116870.0,0.28309214]
[1755888909028,0.86893475,116880.0,116870.0,0.19852134]
[1755888910325,0.4660635,116880.0,116870.0,0.19852134]
[1755888910531,0.86893475,116880.0,116870.0,0.19852134]
[1755888911029,0.86893475,116880.0,116870.0,0.18848766]
[1755888911229,0.86893475,116880.0,116870.0,0.19852134]
[1755888911428,0.86893475,116880.0,116870.0,0.18848766]
[1755888913323,0.4660635,116880.0,116870.0,0.18848766]
[1755888913530,0.86893475,116880.0,116870.0,0.18848766]
[1755888913831,0.4660635,116880.0,116870.0,0.27405856]
[1755888914129,0.86893475,116880.0,116870.0,0.27405856]
[1755888918334,0.86893475,116880.0,116870.0,0.2278409]
[1755888918727,0.86893475,116880.0,116870.0,0.14227]
[1755888919335,1.271806,116880.0,116870.0,0.18847981]
[1755888919635,0.86893475,116880.0,116870.0,0.18847981]
[1755888921526,0.86893475,116880.0,116870.0,0.12994981]
[1755888921728,1.271806,116880.0,116870.0,0.07278981]
[1755888921927,1.271806,116880.0,116870.0,0.04820981]
[1755888922322,1.271806,116880.0,116870.0,0.07103981]
[1755888925935,0.86893475,116880.0,116870.0,0.15636981]
[1755888926336,1.37266622,116880.0,116870.0,0.15636981]
[1755888926635,1.37266622,116880.0,116870.0,0.11200981]
[1755888927231,1.37266622,116880.0,116870.0,0.11266981]
[1755888929130,0.4660635,116880.0,116870.0,0.15841981]
[1755888929439,1.37266622,116880.0,116870.0,0.18772981]
[1755888929634,1.37266622,116880.0,116870.0,0.08071981]
[1755888929937,1.37266622,116880.0,116870.0,0.07169981]
[1755888930436,1.27201622,116880.0,116870.0,0.07169981]
[1755888930736,1.27201622,116880.0,116870.0,0.04820981]
[1755888931035,1.27201622,116880.0,116870.0,0.07169981]
[1755888931236,1.27201622,116880.0,116870.0,0.10058981]
[1755888932138,1.27201622,116880.0,116870.0,0.07169981]
[1755888932637,1.27201622,116880.0,116870.0,0.10058981]
[1755888933029,1.27201622,116880.0,116870.0,0.11047981]
[1755888933338,1.27201622,116880.0,116870.0,0.15622981]
[1755888933636,1.27201622,116880.0,116870.0,0.12561981]
[1755888933836,1.27201622,116880.0,116870.0,0.17136981]
[1755888936840,1.27201622,116880.0,116870.0,0.12561981]
[1755888937540,1.27201622,116880.0,116870.0,0.11047981]
[1755888937737,1.27201622,116880.0,116870.0,0.07169981]
[1755888937942,0.085571,116870.0,116860.0,0.06969981]
[1755888938148,1.67516736,116870.0,116860.0,0.06969609]
[1755888938938,1.92516736,116870.0,116860.0,0.06969609]
[1755888939348,1.92716736,116870.0,116860.0,0.07069609]
[1755888939537,1.92816736,116870.0,116860.0,0.07169609]
[1755888940244,1.92816736,116870.0,116860.0,0.10249087]
[1755888945549,1.92816736,116870.0,116860.0,0.13138087]
[1755888946744,1.67816736,116870.0,116860.0,0.07900087]
[1755888946948,1.525191,116870.0,116860.0,0.07900087]
[1755888947148,1.92816736,116870.0,116860.0,0.05588454]
[1755888947349,1.525191,116870.0,116860.0,0.07937454]
[1755888947550,1.92816736,116870.0,116860.0,0.07937454]
[1755888948247,1.92816736,116870.0,116860.0,0.04857976]
[1755888951143,1.525191,116870.0,116860.0,0.07746976]
[1755888951343,1.92816736,116870.0,116860.0,0.07746976]
[1755888951550,1.92816736,116870.0,116860.0,0.04857976]
[1755888952248,1.67816736,116870.0,116860.0,0.07746976]
[1755888952448,1.67816736,116870.0,116860.0,0.08735976]
[1755888953954,1.67816736,116870.0,116860.0,0.04857976]
[1755888954449,2.18217592,116870.0,116860.0,0.04857976]
[1755888954851,2.43217592,116870.0,116860.0,0.02508976]
[1755888955153,0.1268655,116850.0,116840.0,0.06332391]
[1755888955351,2.57201042,116850.0,116840.0,0.01711782]
[1755888956048,3.02550288,116850.0,116840.0,0.01711782]
[1755888956554,2.47256332,116850.0,116840.0,0.01911782]
[1755888957252,2.47356332,116850.0,116840.0,0.003]
[1755888957555,2.4819231,116850.0,116840.0,0.003]
[1755888959557,2.5514002,116850.0,116840.0,0.003]
[1755888962459,2.8014002,116850.0,116840.0,0.003]
[1755888962655,0.1192102,116830.0,116820.0,0.18335609]
[1755888962854,1.69951911,116830.0,116820.0,0.13715]
[1755888963961,1.70051911,116830.0,116820.0,0.13915]
[1755888965162,1.70051911,116830.0,116820.0,0.18535609]
[1755888965365,1.70151911,116830.0,116820.0,0.14315]
[1755888966365,1.70151911,116830.0,116820.0,0.18935609]
[1755888966566,1.70151911,116830.0,116820.0,0.14315]
[1755888967166,1.70151911,116830.0,116820.0,0.18935609]
[1755888970364,1.59816891,116830.0,116820.0,0.52496359]
[1755888971363,1.68376901,116830.0,116820.0,0.52496359]
[1755888971762,3.18376901,116830.0,116820.0,0.52496359]
[1755888972068,0.37839,116830.0,116820.0,0.52496359]
[1755888972259,1.66793911,116830.0,116820.0,0.52496359]
[1755888972568,3.16793911,116830.0,116820.0,0.52496359]
[1755888972967,2.7646702,116830.0,116820.0,0.52496359]
[1755888973168,3.16793911,116830.0,116820.0,0.52496359]
[1755888975368,3.18568911,116830.0,116820.0,0.52496359]
[1755888975671,3.08233891,116830.0,116820.0,0.52496359]
[1755888976071,2.26633891,116830.0,116820.0,0.52496359]
[1755888976276,2.35193901,116830.0,116820.0,0.52496359]
[1755888976671,2.28408891,116830.0,116820.0,0.52496359]
[1755888976872,1.8628,116830.0,116820.0,0.52496359]
[1755888977077,1.8628,116830.0,116820.0,0.88202641]
[1755888977576,2.35193901,116830.0,116820.0,0.4787575]
[1755888977776,2.36968901,116830.0,116820.0,0.4787575]
[1755888978080,2.36968901,116830.0,116820.0,0.52489689]
[1755888978277,2.36968901,116830.0,116820.0,0.4787575]
[1755888981177,2.36968901,116830.0,116820.0,0.006]
[1755888981484,2.36968901,116830.0,116820.0,0.05216979]
[1755888985780,1.9664201,116830.0,116820.0,0.05216979]
[1755888985981,2.36968901,116830.0,116820.0,0.05216979]
[1755888986884,2.36968901,116830.0,116820.0,0.06220812]
[1755888989685,2.36968901,116830.0,116820.0,0.09174812]
[1755888989889,2.36968901,116830.0,116820.0,0.11539812]
[1755888991089,2.36968901,116830.0,116820.0,0.10535979]
[1755888993784,1.9664201,116830.0,116820.0,0.15141979]
[1755888993989,2.36968901,116830.0,116820.0,0.16106979]
[1755888994290,1.9664201,116830.0,116820.0,0.16106979]
[1755888994489,2.4201043,116830.0,116820.0,0.19193979]
[1755888994888,2.8737885,116830.0,116820.0,0.19193979]
[1755888995085,2.8737885,116830.0,116820.0,0.17716979]
[1755888997188,2.8737885,116830.0,116820.0,0.13110979]
[1755888997597,2.8737885,116830.0,116820.0,0.17716979]
[1755888998592,2.8737885,116830.0,116820.0,0.19193979]
[1755889000796,2.4201043,116830.0,116820.0,0.27754729]
[1755889000996,2.4201043,116830.0,116820.0,0.19193979]
[1755889002692,2.4201043,116830.0,116820.0,0.20197811]
[1755889002988,1.9664201,116830.0,116820.0,0.28758561]
[1755889003295,0.9179043,116830.0,116820.0,0.69510002]
[1755889003595,0.9359243,116830.0,116820.0,0.24141582]
[1755889003799,0.9359243,116830.0,116820.0,0.15580832]
[1755889005000,0.9359243,116830.0,116820.0,0.15580774]
[1755889010998,0.9359243,116830.0,116820.0,0.14577]
[1755889011199,0.9359243,116830.0,116820.0,0.15580775]
[1755889011705,0.9359243,116830.0,116820.0,0.24141525]
[1755889012791,2.4359243,116830.0,116820.0,0.24141525]
[1755889013801,2.4359243,116830.0,116820.0,0.15580775]
[1755889015002,2.4359243,116830.0,116820.0,0.10974775]
[1755889015303,2.8896085,116830.0,116820.0,0.06225942]
[1755889017703,2.8896085,116830.0,116820.0,0.05222167]
[1755889024817,2.8896085,116830.0,116820.0,0.10488167]
[1755889026219,1.9822401,116830.0,116820.0,0.10488167]
[1755889026419,2.8896085,116830.0,116820.0,0.10488167]
[1755889026718,2.90679782,116830.0,116820.0,0.10488167]
[1755889027616,2.90679782,116830.0,116820.0,0.05222167]
[1755889028517,2.90679782,116830.0,116820.0,0.08164167]
[1755889028719,2.90679782,116830.0,116820.0,0.10488167]
[1755889029017,2.90679782,116830.0,116820.0,0.11431167]
[1755889030715,2.90679782,116830.0,116820.0,0.05222167]
[1755889033016,0.0856147,116810.0,116800.0,0.15661981]
[1755889033323,1.7135389,116810.0,116800.0,0.23195852]
[1755889034219,3.2135389,116810.0,116800.0,0.23195852]
[1755889034419,3.2145389,116810.0,116800.0,0.21555629]
[1755889035026,3.2145389,116810.0,116800.0,0.30117839]
[1755889036116,3.2145389,116810.0,116800.0,0.30017839]
[1755889037525,3.2145389,116810.0,116800.0,0.29013968]
[1755889037728,3.2145389,116810.0,116800.0,0.30017856]
[1755889039632,2.7608547,116810.0,116800.0,0.30017856]
[1755889039825,3.2145389,116810.0,116800.0,0.30017856]
[1755889042024,3.1289242,116810.0,116800.0,0.55017856]
[1755889042224,3.2145389,116810.0,116800.0,0.55017856]
[1755889043533,2.4010989,116810.0,116800.0,0.55017856]
[1755889045435,1.9474147,116810.0,116800.0,0.55017856]
[1755889045636,2.4010989,116810.0,116800.0,0.55017856]
[1755889046536,2.4010989,116810.0,116800.0,0.54013968]
[1755889046744,2.4010989,116810.0,116800.0,0.55017846]
[1755889046930,1.9474147,116810.0,116800.0,0.55017846]
[1755889047131,2.4010989,116810.0,116800.0,0.55017846]
[1755889049135,1.9474147,116810.0,116800.0,0.55017846]
[1755889049436,2.4010989,116810.0,116800.0,0.55017846]
[1755889049939,2.4010989,116810.0,116800.0,0.30017846]
[1755889051639,1.9474147,116810.0,116800.0,0.30017846]
[1755889051940,2.4010989,116810.0,116800.0,0.30017846]
[1755889052629,2.4010989,116810.0,116800.0,0.29013968]
[1755889052835,2.4010989,116810.0,116800.0,0.30017846]
[1755889055236,1.9474147,116810.0,116800.0,0.30017846]
[1755889055438,2.4010989,116810.0,116800.0,0.30017846]
[1755889058044,0.9010989,116810.0,116800.0,0.30017846]
[1755889058442,2.4010989,116810.0,116800.0,0.30017846]
[1755889060538,2.4010989,116810.0,116800.0,0.25811846]
[1755889060746,2.4010989,116810.0,116800.0,0.75493266]
[1755889060940,2.3154842,116810.0,116800.0,0.75493266]
[1755889061440,0.8154842,116810.0,116800.0,0.75493266]
[1755889062344,0.001,116810.0,116800.0,0.75493266]
[1755889062546,0.4546842,116810.0,116800.0,0.75493266]
[1755889063548,0.001,116810.0,116800.0,0.75493266]
[1755889063847,0.4546842,116810.0,116800.0,0.75493266]
[1755889065048,0.4546842,116810.0,116800.0,0.30124815]
[1755889065248,0.4546842,116810.0,116800.0,0.75493235]
[1755889065946,0.4546842,116810.0,116800.0,0.30124815]
[1755889066146,0.4546842,116810.0,116800.0,0.75493235]
[1755889067454,0.001,116810.0,116800.0,0.30124815]
[1755889067755,0.4546842,116810.0,116800.0,0.30124815]
[1755889067940,0.4546842,116810.0,116800.0,0.75493235]
[1755889068145,0.5402988,116810.0,116800.0,0.75493233]
[1755889068346,0.0866146,116810.0,116800.0,0.75493233]
[1755889068546,0.5402988,116810.0,116800.0,0.75493233]
[1755889069348,0.5402988,116810.0,116800.0,0.30124813]